bitfinex-derivatives/quotes_BTCF0:USTF0_20251103
["timestamp","ask_amount","ask_price","bid_price","bid_amount"]
[1762186788582,0.5468189,106350.0,106340.0,0.04615]
[1762186788900,0.186027,106340.0,106330.0,0.48772617]
[1762186789384,1.9832881,106360.0,106340.0,0.04615]
[1762186789385,1.89922633,106360.0,106340.0,0.04615]
[1762186789583,0.186018,106350.0,106340.0,0.12692617]
[1762186789891,0.186018,106350.0,106340.0,0.48772617]
[1762186790593,0.09197,106350.0,106340.0,0.51817617]
[1762186790778,0.5260978,106350.0,106340.0,0.51817617]
[1762186791178,0.5290578,106350.0,106340.0,0.51817617]
[1762186791386,0.5290578,106350.0,106340.0,0.15737617]
[1762186791896,0.5290578,106350.0,106340.0,0.51817617]
[1762186792283,0.8898578,106350.0,106340.0,0.08314042]
[1762186792487,1.1249378,106350.0,106340.0,0.03325617]
[1762186792785,1.1249378,106350.0,106320.0,0.04988425]
[1762186792786,0.04591,106330.0,106320.0,0.04988425]
[1762186792988,0.3638,106350.0,106330.0,0.09367]
[1762186793183,0.79581,106350.0,106340.0,0.04615]
[1762186793385,0.12022,106340.0,106330.0,0.24476363]
[1762186793690,0.09197,106340.0,106330.0,0.69923363]
[1762186793892,0.43201,106340.0,106330.0,0.69923363]
[1762186794691,0.44513,106340.0,106330.0,0.41068425]
[1762186794885,0.44613,106340.0,106330.0,0.04988425]
[1762186795690,0.45377,106340.0,106330.0,0.14355425]
[1762186795894,0.44613,106340.0,106330.0,0.29091363]
[1762186796189,1.50997633,106360.0,106350.0,0.09367]
[1762186796392,1.85001633,106360.0,106350.0,0.69951503]
[1762186796893,1.5,106360.0,106350.0,0.69951503]
[1762186797088,1.84004,106360.0,106350.0,0.79356323]
[1762186797286,1.5,106360.0,106350.0,0.69951503]
[1762186797487,1.84,106360.0,106350.0,0.50463565]
[1762186797687,1.5,106360.0,106350.0,0.69951503]
[1762186797995,1.843,106360.0,106350.0,0.69951503]
[1762186798293,1.85260935,106360.0,106350.0,0.69951503]
[1762186798685,2.21340935,106360.0,106350.0,0.14383565]
[1762186799094,2.22672935,106360.0,106350.0,0.09367]
[1762186799394,0.09197,106350.0,106340.0,0.48492]
[1762186799596,0.38591,106350.0,106340.0,0.48492]
[1762186800291,0.04591,106350.0,106340.0,0.77385618]
[1762186800496,1.52592935,106360.0,106350.0,0.1877179]
[1762186800497,1.51260935,106360.0,106350.0,0.1877179]
[1762186800796,0.01260935,106360.0,106350.0,0.61503024]
[1762186801089,0.5,106380.0,106370.0,0.09367]
[1762186801294,0.5,106380.0,106370.0,0.86546121]
[1762186801295,0.6859902,106380.0,106370.0,0.86546121]
[1762186801492,1.0395202,106380.0,106370.0,0.76775]
[1762186801690,0.9799302,106380.0,106370.0,0.81527]
[1762186801892,1.0259502,106380.0,106370.0,0.81527]
[1762186802385,1.0394802,106380.0,106370.0,0.3608]
[1762186802587,1.0394802,106380.0,106360.0,0.24507059]
[1762186802588,0.185999,106370.0,106360.0,0.24507059]
[1762186802794,0.185999,106370.0,106360.0,0.19487938]
[1762186802990,0.546799,106370.0,106360.0,0.05019121]
[1762186803193,1.31785299,106380.0,106370.0,0.09367]
[1762186803194,0.60356399,106380.0,106370.0,0.09367]
[1762186803398,0.60356399,106380.0,106370.0,0.64934938]
[1762186803585,0.44989562,106380.0,106370.0,1.02857039]
[1762186803791,0.44989562,106380.0,106370.0,1.4788674]
[1762186804097,0.44989562,106380.0,106370.0,1.41235506]
[1762186804296,0.44989562,106380.0,106370.0,1.09327593]
[1762186804495,0.54391522,106380.0,106370.0,1.1498376]
[1762186804899,0.54391522,106380.0,106370.0,1.03951676]
[1762186805094,0.97584522,106380.0,106370.0,0.69955676]
[1762186805492,0.44989562,106380.0,106370.0,0.45447]
[1762186805694,0.44989562,106380.0,106370.0,0.69955676]
[1762186806010,0.54391532,106380.0,106370.0,1.03947676]
[1762186806396,0.44989562,106380.0,106370.0,1.13350546]
[1762186806597,0.44989562,106380.0,106370.0,1.41230513]
[1762186807002,0.44989562,106380.0,106370.0,1.21742575]
[1762186807210,0.44989562,106380.0,106370.0,1.41230513]
[1762186807597,0.44989562,106380.0,106370.0,1.41530513]
[1762186807796,0.44989562,106380.0,106370.0,1.32127643]
[1762186807996,0.44989562,106380.0,106370.0,1.23050315]
[1762186808614,0.44989562,106380.0,106370.0,1.41530513]
[1762186808914,1.5,106390.0,106380.0,0.2181397]
[1762186809112,1.59401,106390.0,106380.0,0.53509962]
[1762186809509,1.5,106390.0,106380.0,0.95812637]
[1762186809707,0.003,106410.0,106400.0,0.2181221]
[1762186809912,0.003,106410.0,106400.0,1.2796021]
[1762186810102,0.003,106410.0,106400.0,1.5145621]
[1762186810302,0.003,106410.0,106400.0,1.60856031]
[1762186810702,1.593975,106430.0,106420.0,0.12412]
[1762186810903,1.5,106430.0,106420.0,1.47442228]
[1762186811417,0.01285469,106450.0,106440.0,0.09367]
[1762186811418,0.1889274,106450.0,106440.0,0.09367]
[1762186811718,0.1889274,106450.0,106440.0,0.45447]
[1762186812012,0.04591,106420.0,106410.0,0.3608]
[1762186812210,1.7142043,106420.0,106410.0,0.3608]
[1762186812718,1.6859543,106420.0,106410.0,0.64934938]
[1762186813317,1.5,106420.0,106410.0,1.31806248]
[1762186813505,1.5939865,106420.0,106410.0,0.98914938]
[1762186813710,1.5,106420.0,106410.0,0.98914938]
[1762186813906,1.5,106420.0,106410.0,0.45447]
[1762186814114,0.09197,106410.0,106390.0,0.55567938]
[1762186814417,0.09197,106400.0,106390.0,0.60182938]
[1762186814613,0.43173,106400.0,106390.0,0.3608]
[1762186814915,0.43173,106400.0,106380.0,0.39125]
[1762186815122,0.43173,106400.0,106380.0,0.58612938]
[1762186815416,0.43173,106400.0,106390.0,0.3608]
[1762186816015,0.09949,106390.0,106380.0,0.3608]
[1762186816516,0.33976,106390.0,106380.0,0.68221938]
[1762186816816,0.09949,106390.0,106380.0,0.40689]
[1762186817010,0.09949,106390.0,106380.0,0.65209938]
[1762186817205,0.09949,106390.0,106380.0,0.74611928]
[1762186817415,0.44890274,106400.0,106390.0,0.09642]
[1762186817606,0.44890274,106400.0,106390.0,0.55567938]
[1762186817919,0.47908274,106400.0,106390.0,0.3608]
[1762186818316,0.44890274,106400.0,106390.0,0.45722]
[1762186818613,0.04932,106390.0,106380.0,0.63488938]
[1762186818814,0.04932,106390.0,106380.0,0.68521938]
[1762186819125,0.44890274,106400.0,106390.0,0.04609]
[1762186819421,0.44890274,106400.0,106390.0,0.45722]
[1762186819625,0.10914274,106400.0,106390.0,0.45722]
[1762186819921,0.44886274,106400.0,106390.0,0.45722]
[1762186820216,0.10914274,106400.0,106390.0,0.40689]
[1762186820420,0.44886274,106400.0,106390.0,0.40689]
[1762186820621,0.10914274,106400.0,106390.0,0.45722]
[1762186820811,0.44886274,106400.0,106390.0,0.45722]
[1762186821015,0.44886274,106400.0,106390.0,0.40689]
[1762186821208,0.83984274,106400.0,106390.0,0.002]
[1762186821712,0.47904274,106400.0,106390.0,0.3628]
[1762186821913,0.44886274,106400.0,106390.0,0.65409938]
[1762186822125,0.20314474,106400.0,106390.0,0.65409938]
[1762186822423,0.54286474,106400.0,106390.0,0.704279]
[1762186822817,0.93384474,106400.0,106390.0,0.05217962]
[1762186824024,0.04932,106390.0,106380.0,0.05017962]
[1762186824325,0.09949,106360.0,106350.0,0.54190026]
[1762186824621,0.45274,106360.0,106350.0,0.3608]
[1762186825020,0.09949,106350.0,106340.0,0.44866992]
[1762186825217,0.46987869,106350.0,106340.0,0.08786992]
[1762186825421,0.46987869,106350.0,106340.0,0.07048116]
[1762186825620,0.70495869,106350.0,106340.0,0.07048116]
[1762186825927,0.09949,106330.0,106320.0,0.08413989]
[1762186826123,0.09949,106330.0,106300.0,0.64848328]
[1762186826124,0.09949,106310.0,106300.0,0.48114422]
[1762186826312,0.43917,106310.0,106300.0,0.36390428]
[1762186826512,0.09949,106310.0,106300.0,0.62327888]
[1762186826821,0.00958869,106350.0,106320.0,0.13284]
[1762186827017,0.10113,106330.0,106320.0,0.5437146]
[1762186827213,0.10113,106330.0,106320.0,0.4548741]
[1762186827529,0.44085,106330.0,106320.0,0.6886485]
[1762186827727,0.04919,106320.0,106310.0,0.5049571]
[1762186828030,0.04919,106320.0,106310.0,0.6886517]
[1762186828324,0.38491,106320.0,106310.0,0.6886517]
[1762186828526,0.38491,106320.0,106310.0,0.5945746]
[1762186828718,0.04919,106310.0,106300.0,0.49673888]
[1762186829027,0.10113,106310.0,106300.0,0.59082948]
[1762186829319,0.10113,106310.0,106300.0,0.57523562]
[1762186829519,0.10113,106310.0,106300.0,0.59083028]
[1762186829821,0.04619,106310.0,106300.0,0.72367028]
[1762186830016,0.04919,106320.0,106310.0,0.1950226]
[1762186830216,0.38891,106320.0,106310.0,0.6886572]
[1762186830418,0.44089,106320.0,106310.0,0.3608]
[1762186830817,0.44089,106320.0,106310.0,0.4548816]
[1762186831216,0.10113,106320.0,106310.0,0.5049616]
[1762186831530,0.38895,106320.0,106310.0,0.6886562]
[1762186831724,0.37013,106320.0,106310.0,0.3608]
[1762186832026,0.47126,106320.0,106310.0,0.4548815]
[1762186832325,0.44089,106320.0,106310.0,0.6886561]
[1762186832927,0.44089,106320.0,106310.0,0.5558215]
[1762186833123,0.44089,106320.0,106310.0,0.3608]
[1762186833314,0.09813,106310.0,106300.0,0.05318428]
[1762186833621,0.09813,106310.0,106300.0,0.00310428]
[1762186833823,0.09813,106310.0,106300.0,0.09719358]
[1762186834021,0.09813,106310.0,106300.0,0.50807468]
[1762186834422,0.39228655,106340.0,106310.0,0.0940812]
[1762186834623,0.10113,106320.0,106310.0,0.6886558]
[1762186834925,0.10113,106320.0,106310.0,0.10094]
[1762186835121,0.10113,106320.0,106310.0,0.46174]
[1762186835323,0.44093,106320.0,106310.0,0.3618]
[1762186835827,0.04919,106310.0,106300.0,0.52994269]
[1762186836026,0.04919,106310.0,106300.0,0.58080269]
[1762186836221,0.38899,106310.0,106300.0,0.72366908]
[1762186836416,0.3398,106310.0,106300.0,0.72366908]
[1762186836617,0.44093,106330.0,106320.0,0.05086]
[1762186836817,0.80173,106330.0,106320.0,0.0672763]
[1762186837331,1.03685,106330.0,106320.0,0.0672763]
[1762186837516,0.07314,106310.0,106300.0,0.08719881]
[1762186837824,0.41294,106310.0,106300.0,0.08719881]
[1762186838031,0.41302345,106310.0,106300.0,0.44799881]
[1762186838222,1.08555183,106310.0,106300.0,0.00310428]
[1762186838431,1.08555183,106310.0,106300.0,0.08719881]
[1762186838732,1.08755183,106310.0,106300.0,0.08719881]
[1762186838924,1.08755183,106310.0,106300.0,0.00310428]
[1762186839528,1.22038643,106310.0,106300.0,0.00310428]
[1762186839733,0.74775183,106310.0,106300.0,0.00310428]
[1762186839922,1.08755183,106310.0,106300.0,0.00310428]
[1762186840124,0.48103343,106310.0,106300.0,0.00310428]
[1762186840330,1.18163343,106310.0,106300.0,0.00310428]
[1762186840633,0.1672483,106280.0,106270.0,0.44489453]
[1762186840831,0.41294,106280.0,106270.0,0.53901163]
[1762186841034,0.37637,106290.0,106280.0,0.2269412]
[1762186841330,0.37641,106290.0,106280.0,0.80467033]
[1762186841526,0.03657,106290.0,106280.0,0.80467033]
[1762186841731,0.4704681,106290.0,106280.0,0.71056913]
[1762186841927,0.37637,106290.0,106280.0,0.80467613]
[1762186842130,0.42291533,106290.0,106280.0,0.67184153]
[1762186842324,0.03657,106300.0,106290.0,0.1950361]
[1762186842630,0.4704601,106300.0,106290.0,0.63997657]
[1762186842831,0.5070301,106300.0,106290.0,0.67871507]
[1762186843127,0.5070301,106300.0,106290.0,0.44494047]
[1762186843334,0.7422301,106300.0,106290.0,0.44494047]
[1762186844029,0.1672395,106290.0,106280.0,0.3927]
[1762186844234,0.1611772,106270.0,106260.0,0.4915436]
[1762186844427,7.486e-05,106270.0,106260.0,0.7185043]
[1762186844622,7.486e-05,106270.0,106260.0,0.6243782]
[1762186844830,7.486e-05,106270.0,106260.0,0.4915436]
[1762186845238,0.59615486,106270.0,106260.0,0.0031736]
[1762186845434,0.72898946,106270.0,106260.0,0.0031736]
[1762186845626,0.72898946,106270.0,106260.0,0.0873972]
[1762186845828,0.59615486,106270.0,106260.0,0.0031736]
[1762186846138,0.59615486,106270.0,106260.0,0.08738594]
[1762186846337,0.59615486,106270.0,106260.0,0.0031736]
[1762186846541,0.33991486,106270.0,106260.0,0.6220782]
[1762186846836,0.33991486,106270.0,106260.0,0.33049608]
[1762186847034,0.33991486,106270.0,106260.0,0.69129608]
[1762186847241,0.33991486,106270.0,106260.0,0.57339276]
[1762186847430,0.33991486,106270.0,106260.0,0.70622736]
[1762186848132,0.33991486,106270.0,106260.0,0.0031736]
[1762186848324,1.06882946,106270.0,106260.0,0.0031736]
[1762186848532,0.93599486,106270.0,106260.0,0.08732276]
[1762186848740,1.06882946,106270.0,106260.0,0.07052517]
[1762186848929,1.07082946,106270.0,106260.0,0.07052517]
[1762186849331,1.07082946,106270.0,106260.0,3.6e-06]
[1762186849633,1.07082946,106270.0,106240.0,0.08414916]
[1762186849832,0.8544346,106250.0,106240.0,0.08414916]
[1762186850028,0.8544346,106250.0,106240.0,0.02889]
[1762186850029,0.7216,106250.0,106240.0,0.02889]
[1762186850236,0.33984,106250.0,106240.0,0.02889]
[1762186850438,0.3608,106250.0,106240.0,0.12527]
[1762186850632,0.3608,106260.0,106250.0,0.04901]
[1762186850828,1.5,106250.0,106240.0,0.12527]
[1762186851032,1.5,106250.0,106240.0,0.48607]
[1762186851540,1.5,106250.0,106240.0,0.4387]
[1762186851740,1.5,106250.0,106240.0,0.48607]
[1762186852131,1.8681546,106250.0,106240.0,0.3608]
[1762186852336,1.8681546,106250.0,106240.0,0.001]
[1762186852337,2.2349546,106250.0,106240.0,0.001]
[1762186853546,2.10212,106250.0,106240.0,0.001]
[1762186854138,2.30847947,106250.0,106230.0,0.08414916]
[1762186854339,0.70072,106240.0,106220.0,0.47995577]
[1762186854537,0.33992,106240.0,106220.0,0.57633577]
[1762186854738,0.70072,106240.0,106220.0,0.57633577]
[1762186855633,0.70072,106240.0,106220.0,0.00310661]
[1762186855634,0.7289546,106230.0,106220.0,0.00310661]
[1762186855841,0.58785262,106230.0,106220.0,1e-08]
[1762186856145,0.82317262,106230.0,106220.0,1e-08]
[1762186856350,0.69033802,106230.0,106220.0,1e-08]
[1762186856550,0.45501802,106230.0,106220.0,1e-08]
[1762186857044,0.82321262,106230.0,106220.0,1e-08]
[1762186858648,0.0941602,106220.0,106210.0,0.08414916]
[1762186858842,1.1620748,106220.0,106210.0,0.08414916]
[1762186859241,1.5,106210.0,106200.0,0.11604916]
[1762186859849,1.5,106210.0,106200.0,0.0319]
[1762186860445,2.2290346,106210.0,106190.0,0.4450696]
[1762186860645,0.33996,106200.0,106190.0,0.4450696]
[1762186860851,0.70085412,106200.0,106190.0,0.00012044]
[1762186861039,0.34005412,106200.0,106190.0,0.45730044]
[1762186861241,0.34005412,106200.0,106190.0,0.66939066]
[1762186861445,9.412e-05,106200.0,106190.0,0.80222526]
[1762186861746,1.501,106210.0,106200.0,0.2194469]
[1762186861949,0.001,106210.0,106200.0,0.8459161]
[1762186862139,0.33996,106230.0,106220.0,0.12527]
[1762186862343,0.3491414,106230.0,106220.0,0.48607]
[1762186862745,0.34921097,106230.0,106220.0,0.48607]
[1762186863143,0.84284557,106230.0,106200.0,0.47485512]
[1762186863452,0.34921097,106230.0,106220.0,0.12527]
[1762186863746,0.00925097,106230.0,106220.0,0.5802297]
[1762186864047,0.01825097,106230.0,106220.0,0.57123512]
[1762186864442,0.01825097,106230.0,106220.0,0.12627]
[1762186864849,0.38644557,106230.0,106220.0,0.02989]
[1762186865046,0.74724557,106230.0,106220.0,0.001]
[1762186865351,0.25361097,106230.0,106220.0,0.001]
[1762186865550,0.74724557,106230.0,106220.0,0.001]
[1762186866057,0.61441097,106230.0,106220.0,0.001]
[1762186866438,0.74724557,106230.0,106220.0,0.001]
[1762186866645,1.08720557,106230.0,106220.0,0.001]
[1762186866839,1.08720557,106230.0,106200.0,0.38969]
[1762186867143,0.0941687,106210.0,106200.0,0.47385512]
[1762186867343,0.9277633,106210.0,106180.0,0.03207462]
[1762186867543,0.7216,106190.0,106180.0,0.03207462]
[1762186867751,1.06156,106190.0,106180.0,0.12845462]
[1762186867947,0.3608,106190.0,106180.0,0.12845462]
[1762186868145,0.70076,106190.0,106180.0,0.12845462]
[1762186868443,0.70076,106190.0,106180.0,0.03207462]
[1762186869248,0.49372605,106200.0,106180.0,0.08108462]
[1762186869449,9.145e-05,106200.0,106190.0,0.6842011]
[1762186869657,0.34005145,106200.0,106190.0,0.6842011]
[1762186869958,0.34005145,106200.0,106190.0,0.5513665]
[1762186870254,9.145e-05,106200.0,106190.0,0.6842011]
[1762186870549,0.34005145,106200.0,106190.0,0.6842011]
[1762186870755,9.145e-05,106200.0,106190.0,0.6842011]
[1762186870954,9.145e-05,106200.0,106190.0,1.0524357]
[1762186871250,1.45e-06,106200.0,106190.0,1.14660209]
[1762186871451,1.5,106220.0,106210.0,0.1905487]
[1762186871759,1.5,106220.0,106210.0,1.0449833]
[1762186872263,1.5,106220.0,106210.0,1.16299224]
[1762186872556,1.50008958,106220.0,106210.0,0.9508146]
[1762186872744,1.50008958,106220.0,106210.0,0.09638]
[1762186872950,1.86088958,106220.0,106210.0,0.09638]
[1762186873950,1.86088958,106220.0,106210.0,0.09738]
[1762186874146,1.86488958,106220.0,106210.0,0.09738]
[1762186874958,2.20480958,106220.0,106210.0,0.09738]
[1762186875457,2.29896948,106220.0,106210.0,0.09738]
[1762186876054,2.29896948,106220.0,106210.0,0.001]
[1762186876257,0.0982489,106210.0,106200.0,0.38969]
[1762186876454,0.0982489,106210.0,106200.0,0.07931]
[1762186876661,0.4590489,106210.0,106200.0,0.13549]
[1762186877357,0.0941689,106210.0,106200.0,0.7233024]
[1762186877562,0.0941689,106210.0,106200.0,0.84161286]
[1762186877758,0.4340889,106210.0,106200.0,0.84161286]
[1762186878063,0.0941689,106210.0,106200.0,0.74743506]
[1762186878262,0.4400889,106210.0,106200.0,0.84261256]
[1762186878558,0.00808,106260.0,106250.0,0.05618]
[1762186878748,0.35754749,106260.0,106250.0,0.6002346]
[1762186878948,0.35754749,106260.0,106250.0,0.6943678]
[1762186879155,0.34796,106260.0,106250.0,0.6002346]
[1762186879460,0.00808,106260.0,106250.0,0.77886701]
[1762186879859,0.00808,106260.0,106250.0,0.89717747]
[1762186880159,0.00808,106260.0,106250.0,0.89716981]
[1762186880352,0.00808,106260.0,106250.0,0.77885935]
[1762186880748,0.00808,106260.0,106250.0,1.01413935]
[1762186880958,0.00304626,106260.0,106250.0,1.01413935]
[1762186881159,0.003,106290.0,106280.0,0.2323972]
[1762186881364,0.003,106290.0,106280.0,0.7260318]
[1762186881665,0.003,106290.0,106280.0,0.6319246]
[1762186882066,0.003,106290.0,106280.0,0.7260321]
[1762186882463,0.02890178,106290.0,106280.0,0.7260321]
[1762186883162,0.003,106290.0,106280.0,0.7260321]
[1762186883364,0.01,106290.0,106280.0,0.7270321]
[1762186883661,0.02530987,106320.0,106310.0,0.1066]
[1762186883862,0.05413569,106330.0,106320.0,0.1066]
[1762186884163,0.39393512,106330.0,106320.0,0.1066]
[1762186884369,0.51830512,106330.0,106320.0,0.1066]
[1762186884560,0.85810512,106330.0,106310.0,0.3608]
[1762186884870,0.39393512,106330.0,106320.0,0.1066]
[1762186885065,0.11637171,106330.0,106320.0,0.13829]
[1762186885270,0.37797184,106330.0,106320.0,0.7259959]
[1762186885474,0.37797184,106330.0,106320.0,0.6319246]
[1762186885663,0.37797184,106330.0,106320.0,0.2711246]
[1762186885862,0.47203474,106330.0,106320.0,0.6319246]
[1762186886062,0.47203474,106330.0,106310.0,0.4674]
[1762186886063,0.1974416,106320.0,106310.0,0.4674]
[1762186886371,0.11989685,106320.0,106310.0,0.4674]
[1762186887159,0.17041685,106320.0,106310.0,0.4674]
[1762186887963,0.17341685,106320.0,106310.0,0.4674]
[1762186888262,0.17341685,106320.0,106300.0,0.5004]
[1762186888263,0.1455401,106310.0,106300.0,0.5004]
[1762186888464,0.51093536,106310.0,106300.0,0.5004]
[1762186888778,0.56618528,106310.0,106300.0,0.5004]
[1762186889774,0.56618528,106310.0,106290.0,0.46871]
[1762186889775,0.200799,106300.0,106290.0,0.46871]
[1762186890174,0.22655342,106300.0,106290.0,0.46871]
[1762186890374,0.22655342,106300.0,106290.0,0.5628086]
[1762186890874,0.13246442,106300.0,106290.0,0.5628086]
[1762186891069,0.10671,106300.0,106290.0,0.5628086]
[1762186891268,0.10671,106300.0,106290.0,0.46871]
[1762186891269,0.47206523,106300.0,106290.0,0.46871]
[1762186891873,0.47206523,106300.0,106290.0,0.5628086]
[1762186892372,0.47206523,106300.0,106290.0,0.46871]
[1762186892576,0.05146,106290.0,106280.0,0.5004]
[1762186892871,0.10671,106290.0,106280.0,0.5945073]
[1762186893069,0.75186,106300.0,106290.0,0.2020085]
[1762186893267,0.10771,106310.0,106300.0,0.2019996]
[1762186893464,0.47303401,106310.0,106300.0,0.2019996]
[1762186894064,0.47303401,106310.0,106300.0,0.5954696]
[1762186894264,0.46751,106320.0,106310.0,0.2019907]
[1762186894465,0.47199493,106320.0,106310.0,0.2019907]
[1762186894676,0.10671,106320.0,106310.0,0.2019907]
[1762186894874,0.44623,106320.0,106310.0,0.2019907]
[1762186895069,0.10671,106320.0,106310.0,0.2019907]
[1762186895277,0.4167477,106320.0,106310.0,0.2019907]
[1762186895474,0.39098,106320.0,106310.0,0.5627907]
[1762186895667,0.01218689,106330.0,106320.0,0.2346519]
[1762186895869,0.40316689,106330.0,106320.0,0.2346519]
[1762186896068,0.35170689,106330.0,106320.0,0.2346519]
[1762186896269,0.45841689,106330.0,106320.0,0.14058]
[1762186896570,0.10671,106320.0,106310.0,0.46871]
[1762186896873,0.41605,106320.0,106300.0,0.39347]
[1762186897073,0.10671,106310.0,106300.0,0.5954696]
[1762186897476,0.5615819,106320.0,106310.0,0.05195]
[1762186897776,0.2007909,106310.0,106300.0,0.5954698]
[1762186897976,0.44619,106310.0,106300.0,0.5954698]
[1762186898164,0.4850209,106310.0,106300.0,0.5954695]
[1762186898565,0.566055,106310.0,106300.0,0.05195]
[1762186898780,0.5402709,106310.0,106300.0,0.05195]
[1762186899076,0.56605705,106310.0,106300.0,0.05195]
[1762186899275,0.56605705,106310.0,106300.0,0.201999]
[1762186899574,0.56605705,106310.0,106300.0,0.14058]
[1762186899575,0.4335209,106310.0,106300.0,0.14058]
[1762186899965,0.4335209,106310.0,106300.0,0.2346688]
[1762186900278,0.4335209,106310.0,106300.0,0.5954688]
[1762186900775,0.4335209,106310.0,106300.0,0.79029084]
[1762186900971,0.2007871,106320.0,106310.0,0.201988]
[1762186901180,0.5402271,106320.0,106310.0,0.562788]
[1762186901370,0.2007871,106320.0,106310.0,0.562788]
[1762186901571,0.0940839,106310.0,106300.0,0.10791]
[1762186901769,0.73291,106320.0,106300.0,0.2019948]
[1762186901967,0.58284999,106320.0,106310.0,0.10791]
[1762186902172,0.65133105,106320.0,106310.0,0.2049897]
[1762186902374,0.3608,106320.0,106310.0,0.39981174]
[1762186902573,0.57376399,106330.0,106320.0,0.2019809]
[1762186902875,0.93875795,106330.0,106320.0,0.10791]
[1762186903275,0.93875795,106330.0,106320.0,0.2019809]
[1762186903475,0.93875795,106330.0,106320.0,0.10791]
[1762186903880,0.93875795,106330.0,106320.0,0.05195]
[1762186904583,0.2715708,106320.0,106310.0,0.2213697]
[1762186904770,0.6323708,106320.0,106310.0,0.2233697]
[1762186904970,0.6369308,106320.0,106310.0,0.0533]
[1762186905168,0.66254689,106320.0,106310.0,0.0533]
[1762186905382,0.66254689,106320.0,106310.0,0.0513]
[1762186905584,0.2277997,106310.0,106300.0,0.2213785]
[1762186905874,0.5885997,106310.0,106300.0,0.12729]
[1762186906080,0.5885997,106310.0,106300.0,0.2213785]
[1762186906577,0.0940797,106310.0,106300.0,0.41620054]
[1762186906973,0.5885997,106310.0,106300.0,0.2213785]
[1762186907281,0.5885997,106310.0,106300.0,0.12729]
[1762186907575,0.5885997,106310.0,106300.0,0.2213785]
[1762186907883,0.4548797,106310.0,106300.0,0.2213785]
[1762186908281,0.5110897,106310.0,106300.0,0.2213785]
[1762186908475,0.8504097,106310.0,106300.0,0.2213785]
[1762186908784,0.8504097,106310.0,106300.0,0.2223785]
[1762186909171,0.4651071,106320.0,106300.0,0.46292054]
[1762186909485,0.01023,106320.0,106310.0,0.41619174]
[1762186909792,0.6426008,106320.0,106310.0,0.5606497]
[1762186910082,0.9818808,106320.0,106310.0,0.12729]
[1762186910282,1.00631961,106320.0,106310.0,0.12729]
[1762186910481,1.00631961,106320.0,106300.0,0.5831704]
[1762186910482,0.2277997,106310.0,106300.0,0.5831704]
[1762186910689,0.5885997,106310.0,106300.0,0.12829]
[1762186910878,0.5885997,106310.0,106300.0,0.2223785]
[1762186911074,0.5885997,106310.0,106300.0,0.12829]
[1762186911672,0.9278397,106310.0,106300.0,0.12829]
[1762186911878,0.9278397,106310.0,106290.0,0.4548913]
[1762186912177,0.1745,106300.0,106290.0,0.5821813]
[1762186912577,0.13072,106300.0,106290.0,0.5821813]
[1762186912984,0.05321,106300.0,106290.0,0.5821813]
[1762186913285,0.14395,106320.0,106310.0,0.2213698]
[1762186913485,0.84399,106320.0,106310.0,0.2213698]
[1762186913987,0.13372,106310.0,106300.0,0.0523]
[1762186914185,0.49452,106310.0,106300.0,0.1463883]
[1762186914386,0.49452,106310.0,106300.0,0.001]
[1762186914884,0.01023,106320.0,106310.0,0.2213695]
[1762186915086,0.06644,106320.0,106310.0,0.2213695]
[1762186915390,0.01023,106320.0,106310.0,0.65135154]
[1762186915686,0.01023,106320.0,106310.0,0.41619154]
[1762186915886,0.01023,106320.0,106310.0,0.65135154]
[1762186916687,0.01023,106320.0,106310.0,0.89391164]
[1762186916887,0.3638,106330.0,106310.0,0.89391164]
[1762186916888,0.003,106330.0,106320.0,0.255601]
[1762186917082,0.003,106330.0,106320.0,1.15038304]
[1762186917290,0.003,106330.0,106320.0,1.38550304]
[1762186917484,0.89187987,106360.0,106350.0,0.2213344]
[1762186917688,0.74907894,106360.0,106350.0,0.2213344]
[1762186917983,0.419177,106360.0,106350.0,0.2213344]
[1762186918188,0.38460907,106360.0,106350.0,0.2213344]
[1762186918783,0.44081907,106360.0,106350.0,0.12729]
[1762186918984,0.51832907,106360.0,106350.0,0.12729]
[1762186919183,0.56210907,106360.0,106350.0,0.12729]
[1762186919387,0.56210907,106360.0,106350.0,0.2213344]
[1762186919891,0.57124117,106360.0,106350.0,0.2213344]
[1762186920087,0.21044117,106360.0,106350.0,0.2213344]
[1762186920289,0.31147677,106360.0,106350.0,0.2223344]
[1762186920490,0.18105467,106360.0,106350.0,0.41715644]
[1762186920791,0.03080907,106360.0,106350.0,0.77795644]
[1762186920982,0.03080907,106360.0,106350.0,1.01303644]
[1762186921183,0.007,106360.0,106350.0,1.10706116]
[1762186921379,0.003,106370.0,106360.0,0.2460155]
[1762186921591,0.41962762,106390.0,106380.0,0.12729]
[1762186921896,0.04858107,106390.0,106380.0,1.15868994]
[1762186922284,0.04858107,106390.0,106380.0,0.9638679]
[1762186922483,0.04858107,106390.0,106380.0,1.15868994]
[1762186922694,0.14258957,106390.0,106380.0,1.15868934]
[1762186922992,0.67062732,106390.0,106380.0,0.46629]
[1762186923189,0.2277379,106380.0,106370.0,0.0513]
[1762186923393,2.1555891,106380.0,106370.0,0.0513]
[1762186923688,0.2277467,106370.0,106360.0,0.0513]
[1762186923892,0.0940444,106350.0,106340.0,0.48819906]
[1762186924079,0.9275644,106350.0,106340.0,0.00010906]
[1762186924283,0.95077668,106350.0,106340.0,0.00010906]
[1762186925285,0.61177668,106350.0,106340.0,0.09416196]
[1762186925589,0.42988987,106360.0,106340.0,0.09416196]
[1762186925590,0.3827,106360.0,106350.0,0.2213341]
[1762186925786,0.99447767,106360.0,106350.0,0.07599]
[1762186925988,0.99447767,106360.0,106340.0,0.2889811]
[1762186925989,0.2277644,106350.0,106340.0,0.00010906]
[1762186926189,0.3827,106360.0,106350.0,0.2213344]
[1762186926386,0.02322716,106360.0,106350.0,1.11587644]
[1762186926686,1.52530987,106380.0,106370.0,0.2213167]
[1762186927001,1.52530987,106380.0,106370.0,1.11585874]
[1762186927002,1.5,106380.0,106370.0,1.11585874]
[1762186927289,0.02530987,106390.0,106380.0,0.2213079]
[1762186927491,0.02530987,106390.0,106380.0,0.81964994]
[1762186927685,0.56983732,106400.0,106390.0,0.221299]
[1762186927886,0.53631957,106400.0,106390.0,0.221299]
[1762186928192,0.08151987,106400.0,106390.0,0.221299]
[1762186928388,0.66673942,106400.0,106390.0,0.12729]
[1762186928690,0.65761577,106400.0,106390.0,0.1453086]
[1762186928891,0.65761577,106400.0,106390.0,0.0513]
[1762186929585,0.65761577,106400.0,106390.0,0.12729]
[1762186929786,0.227729,106390.0,106380.0,0.2213063]